[Event "Late-Titled-Tuesday-Blitz-February-27-2024"]
[Site "Chess.com"]
[Date "2024.02.27"]
[Round "10"]
[White "stollenmonster"]
[Black "farzadbfd"]
[Result "1-0"]
[WhiteElo "2855"]
[BlackElo "2677"]
[TimeControl "180+1"]
[EndTime "15:56:12 PST"]
[Termination "stollenmonster won by resignation"]

1. e4 {[%clk 0:03:00.9]} 1... e5 {[%clk 0:03:00.1]} 2. Nc3 {[%clk 0:03:00.6]}
2... Nf6 {[%clk 0:03:00.2]} 3. g3 {[%clk 0:03:01.5]} 3... Bc5 {[%clk 0:02:59.8]}
4. Bg2 {[%clk 0:03:01.5]} 4... d6 {[%clk 0:03:00.5]} 5. h3 {[%clk 0:03:01.7]}
5... h5 {[%clk 0:03:00.6]} 6. d3 {[%clk 0:03:01.2]} 6... Nc6 {[%clk 0:02:59.5]}
7. Bg5 {[%clk 0:02:54]} 7... Nd4 {[%clk 0:02:53.3]} 8. Na4 {[%clk 0:02:46.7]}
8... Ne6 {[%clk 0:02:52.7]} 9. Bc1 {[%clk 0:02:37.7]} 9... h4 {[%clk 0:02:52]}
10. g4 {[%clk 0:02:37]} 10... Nd7 {[%clk 0:02:09]} 11. Ne2 {[%clk 0:02:32]}
11... g5 {[%clk 0:02:03.8]} 12. c3 {[%clk 0:02:29.1]} 12... Ndf8 {[%clk
0:01:29.1]} 13. d4 {[%clk 0:02:26.9]} 13... Bb6 {[%clk 0:01:29.5]} 14. O-O
{[%clk 0:02:26]} 14... Ng6 {[%clk 0:01:29.2]} 15. Kh2 {[%clk 0:02:23.6]} 15...
Bd7 {[%clk 0:01:28]} 16. Nxb6 {[%clk 0:02:15.1]} 16... axb6 {[%clk 0:01:28.9]}
17. Be3 {[%clk 0:02:14.3]} 17... O-O {[%clk 0:01:20.3]} 18. Qd2 {[%clk 0:02:13]}
18... Bb5 {[%clk 0:01:10.3]} 19. b3 {[%clk 0:02:07.8]} 19... Bxe2 {[%clk
0:01:10.1]} 20. Qxe2 {[%clk 0:02:08.7]} 20... Ngf4 {[%clk 0:01:10.6]} 21. Qb2
{[%clk 0:02:04.1]} 21... Kg7 {[%clk 0:00:58.9]} 22. a4 {[%clk 0:02:03.4]} 22...
f6 {[%clk 0:00:55.2]} 23. Rfd1 {[%clk 0:02:02.3]} 23... Qe7 {[%clk 0:00:47.8]}
24. Bf1 {[%clk 0:02:01.8]} 24... Ng6 {[%clk 0:00:45.5]} 25. Bc4 {[%clk
0:01:57.6]} 25... Nef4 {[%clk 0:00:46]} 26. Re1 {[%clk 0:01:50.6]} 26... Rfd8
{[%clk 0:00:44.4]} 27. Rad1 {[%clk 0:01:50.1]} 27... Kh6 {[%clk 0:00:40.7]} 28.
Qc2 {[%clk 0:01:48.9]} 28... Kg7 {[%clk 0:00:41]} 29. b4 {[%clk 0:01:49]} 29...
Kh6 {[%clk 0:00:35.6]} 30. Bf1 {[%clk 0:01:49.2]} 30... Kg7 {[%clk 0:00:35.5]}
31. Ra1 {[%clk 0:01:48.9]} 31... Qd7 {[%clk 0:00:18.2]} 32. a5 {[%clk
0:01:44.8]} 32... b5 {[%clk 0:00:16.9]} 33. c4 {[%clk 0:01:41.6]} 33... bxc4
{[%clk 0:00:12.9]} 34. Qxc4 {[%clk 0:01:42.5]} 34... exd4 {[%clk 0:00:09]} 35.
Bxd4 {[%clk 0:01:29.9]} 35... Re8 {[%clk 0:00:09.1]} 36. Qc3 {[%clk 0:01:26.5]}
36... Ne5 {[%clk 0:00:09.3]} 37. b5 {[%clk 0:01:25.2]} 37... c6 {[%clk
0:00:07.6]} 38. a6 {[%clk 0:01:13.6]} 38... bxa6 {[%clk 0:00:06.5]} 39. bxa6
{[%clk 0:01:13]} 39... c5 {[%clk 0:00:07.2]} 40. Bxe5 {[%clk 0:01:12.5]} 40...
fxe5 {[%clk 0:00:04.3]} 41. Reb1 {[%clk 0:01:12.4]} 41... Re7 {[%clk 0:00:03.7]}
42. Rb7 {[%clk 0:01:08.4]} 42... Qe8 {[%clk 0:00:03.7]} 43. Rxe7+ {[%clk
0:01:07.9]} 43... Qxe7 {[%clk 0:00:04.6]} 44. Rb1 {[%clk 0:01:07.4]} 44... Kh6
{[%clk 0:00:02.6]} 45. Rb6 {[%clk 0:00:57.6]} 45... Qf6 {[%clk 0:00:01.6]} 46.
Qxc5 {[%clk 0:00:49.8]} 46... Rd8 {[%clk 0:00:02.2]} 47. a7 {[%clk 0:00:45.5]}
47... Ng6 {[%clk 0:00:02.7]} 48. Qe3 {[%clk 0:00:43.5]} 48... Ra8 {[%clk
0:00:02.6]} 49. Rb8 {[%clk 0:00:40.1]} 49... Rxa7 {[%clk 0:00:03]} 50. Qxa7
{[%clk 0:00:40.3]} 50... Qf4+ {[%clk 0:00:03.6]} 51. Kg1 {[%clk 0:00:39.9]}
51... Qxe4 {[%clk 0:00:03.5]} 52. Qe3 {[%clk 0:00:37.3]} 52... Qh1+ {[%clk
0:00:02.4]} 53. Kxh1 {[%clk 0:00:37]} 1-0

[Event "Late-Titled-Tuesday-Blitz-February-27-2024"]
[Site "Chess.com"]
[Date "2024.02.27"]
[Round "10"]
[White "Vigg-Sama"]
[Black "maximnovik"]
[Result "0-1"]
[WhiteElo "2287"]
[BlackElo "2600"]
[TimeControl "180+1"]
[EndTime "15:56:14 PST"]
[Termination "maximnovik won by checkmate"]

1. e4 {[%clk 0:02:56.6]} 1... c6 {[%clk 0:02:58.6]} 2. d4 {[%clk 0:02:56.2]}
2... d5 {[%clk 0:02:58.7]} 3. e5 {[%clk 0:02:55.9]} 3... Bf5 {[%clk 0:02:57.9]}
4. Nd2 {[%clk 0:02:55.8]} 4... e6 {[%clk 0:02:57.7]} 5. Nb3 {[%clk 0:02:56.4]}
5... Nd7 {[%clk 0:02:56.9]} 6. Nf3 {[%clk 0:02:55.4]} 6... a6 {[%clk 0:02:55.8]}
7. Be2 {[%clk 0:02:53.3]} 7... c5 {[%clk 0:02:55.2]} 8. dxc5 {[%clk 0:02:46.8]}
8... Nxc5 {[%clk 0:02:54.6]} 9. Nfd4 {[%clk 0:02:46.7]} 9... Bg6 {[%clk
0:02:49]} 10. O-O {[%clk 0:02:45.8]} 10... Nxb3 {[%clk 0:02:47.4]} 11. axb3
{[%clk 0:02:45.8]} 11... Ne7 {[%clk 0:02:46.6]} 12. Bd2 {[%clk 0:02:41.4]} 12...
Nf5 {[%clk 0:02:42.3]} 13. Nxf5 {[%clk 0:02:38.9]} 13... Bxf5 {[%clk 0:02:41.9]}
14. Ba5 {[%clk 0:02:36.8]} 14... Qd7 {[%clk 0:02:37.6]} 15. c4 {[%clk
0:02:36.7]} 15... Bc5 {[%clk 0:01:54.3]} 16. cxd5 {[%clk 0:02:35.7]} 16... exd5
{[%clk 0:01:48.5]} 17. b4 {[%clk 0:02:26.5]} 17... Ba7 {[%clk 0:01:37.2]} 18.
Bf3 {[%clk 0:02:11.1]} 18... Be6 {[%clk 0:01:19.3]} 19. b5 {[%clk 0:02:02.1]}
19... Qxb5 {[%clk 0:01:15.1]} 20. Qd2 {[%clk 0:01:58.3]} 20... O-O {[%clk
0:01:12.5]} 21. Bc7 {[%clk 0:01:45.1]} 21... Bb8 {[%clk 0:01:02]} 22. Ra5 {[%clk
0:01:41.5]} 22... Qd7 {[%clk 0:01:01.1]} 23. Bxb8 {[%clk 0:01:39.5]} 23... Raxb8
{[%clk 0:01:01.5]} 24. Rd1 {[%clk 0:01:30.9]} 24... Rfd8 {[%clk 0:00:59.6]} 25.
Rc5 {[%clk 0:01:28.5]} 25... Qe7 {[%clk 0:00:55.3]} 26. Qd4 {[%clk 0:01:21.1]}
26... Rbc8 {[%clk 0:00:46.1]} 27. Rdc1 {[%clk 0:01:20.6]} 27... Rxc5 {[%clk
0:00:45]} 28. Rxc5 {[%clk 0:01:20.4]} 28... h6 {[%clk 0:00:38.6]} 29. h3 {[%clk
0:01:18.7]} 29... Qd7 {[%clk 0:00:38.2]} 30. Be2 {[%clk 0:01:12.3]} 30... Rc8
{[%clk 0:00:37.3]} 31. Bd3 {[%clk 0:01:08.2]} 31... Rxc5 {[%clk 0:00:34.7]} 32.
Qxc5 {[%clk 0:01:09.1]} 32... g6 {[%clk 0:00:34.1]} 33. f4 {[%clk 0:01:07.7]}
33... h5 {[%clk 0:00:32.5]} 34. Kf2 {[%clk 0:01:07.4]} 34... d4 {[%clk
0:00:22.6]} 35. Qd6 {[%clk 0:00:57.3]} 35... Qxd6 {[%clk 0:00:20.2]} 36. exd6
{[%clk 0:00:58.2]} 36... Kf8 {[%clk 0:00:19.5]} 37. Kf3 {[%clk 0:00:58.4]} 37...
Bd5+ {[%clk 0:00:18]} 38. Be4 {[%clk 0:00:54.6]} 38... Bxe4+ {[%clk 0:00:17.5]}
39. Kxe4 {[%clk 0:00:55.5]} 39... Ke8 {[%clk 0:00:14.5]} 40. Kxd4 {[%clk
0:00:55.1]} 40... Kd7 {[%clk 0:00:14.9]} 41. Ke5 {[%clk 0:00:53.9]} 41... a5
{[%clk 0:00:12.7]} 42. g4 {[%clk 0:00:52.2]} 42... hxg4 {[%clk 0:00:11]} 43.
hxg4 {[%clk 0:00:52.3]} 43... b5 {[%clk 0:00:09.3]} 44. g5 {[%clk 0:00:44.7]}
44... a4 {[%clk 0:00:09.1]} 45. Kf6 {[%clk 0:00:45.1]} 45... b4 {[%clk
0:00:09.2]} 46. Kxf7 {[%clk 0:00:45.5]} 46... a3 {[%clk 0:00:09.7]} 47. bxa3
{[%clk 0:00:45.6]} 47... bxa3 {[%clk 0:00:09.5]} 48. f5 {[%clk 0:00:46.1]} 48...
a2 {[%clk 0:00:10.1]} 49. fxg6 {[%clk 0:00:46.3]} 49... a1=Q {[%clk 0:00:10.4]}
50. g7 {[%clk 0:00:47.2]} 50... Qa2+ {[%clk 0:00:10.9]} 51. Kf8 {[%clk
0:00:46.3]} 51... Qf2+ {[%clk 0:00:11.5]} 52. Kg8 {[%clk 0:00:46.8]} 52... Kxd6
{[%clk 0:00:12.1]} 53. Kh7 {[%clk 0:00:46.1]} 53... Qh4+ {[%clk 0:00:12.6]} 54.
Kg6 {[%clk 0:00:46.2]} 54... Qc4 {[%clk 0:00:12]} 55. Kh7 {[%clk 0:00:45.2]}
55... Qe4+ {[%clk 0:00:11.6]} 56. Kh6 {[%clk 0:00:44.6]} 56... Qe8 {[%clk
0:00:10.2]} 57. Kh7 {[%clk 0:00:44.1]} 57... Qh5+ {[%clk 0:00:10.5]} 58. Kg8
{[%clk 0:00:44.8]} 58... Ke6 {[%clk 0:00:10.9]} 59. Kf8 {[%clk 0:00:45.1]} 59...
Qf7# {[%clk 0:00:10.9]} 0-1

[Event "Late-Titled-Tuesday-Blitz-February-27-2024"]
[Site "Chess.com"]
[Date "2024.02.27"]
[Round "10"]
[White "Abund"]
[Black "xakevicius91"]
[Result "1-0"]
[WhiteElo "2740"]
[BlackElo "2570"]
[TimeControl "180+1"]
[EndTime "15:56:16 PST"]
[Termination "Abund won by resignation"]

1. Nf3 {[%clk 0:03:00.9]} 1... Nf6 {[%clk 0:02:57.1]} 2. e3 {[%clk 0:03:00.6]}
2... b6 {[%clk 0:02:56.6]} 3. b3 {[%clk 0:02:59.1]} 3... Bb7 {[%clk 0:02:57]} 4.
Bb2 {[%clk 0:02:59.8]} 4... e6 {[%clk 0:02:57.6]} 5. c4 {[%clk 0:02:59]} 5... c5
{[%clk 0:02:57.5]} 6. d4 {[%clk 0:02:52.5]} 6... cxd4 {[%clk 0:02:57.2]} 7. Nxd4
{[%clk 0:02:51.1]} 7... Be7 {[%clk 0:02:57]} 8. Nd2 {[%clk 0:02:51]} 8... O-O
{[%clk 0:02:56.8]} 9. Bd3 {[%clk 0:02:41.5]} 9... d6 {[%clk 0:02:56]} 10. O-O
{[%clk 0:02:41.3]} 10... Nbd7 {[%clk 0:02:55.8]} 11. Rc1 {[%clk 0:02:40.2]}
11... a6 {[%clk 0:02:55.5]} 12. Qe2 {[%clk 0:02:34.6]} 12... Rc8 {[%clk
0:02:54.3]} 13. h3 {[%clk 0:02:29.9]} 13... Qc7 {[%clk 0:02:54.7]} 14. Rfd1
{[%clk 0:02:29.2]} 14... Qb8 {[%clk 0:02:54.7]} 15. Nf1 {[%clk 0:02:17.6]} 15...
Nc5 {[%clk 0:02:48.9]} 16. Bb1 {[%clk 0:02:17.1]} 16... Nce4 {[%clk 0:02:49.5]}
17. f3 {[%clk 0:02:12]} 17... Nc5 {[%clk 0:02:48.5]} 18. e4 {[%clk 0:02:05.4]}
18... Rfd8 {[%clk 0:02:48]} 19. Ne3 {[%clk 0:02:05.6]} 19... Ba8 {[%clk
0:02:45.4]} 20. Rd2 {[%clk 0:01:49.2]} 20... Re8 {[%clk 0:02:44.1]} 21. Qf2
{[%clk 0:01:45.2]} 21... Rcd8 {[%clk 0:02:44.1]} 22. Rcd1 {[%clk 0:01:45]} 22...
b5 {[%clk 0:02:39.5]} 23. Ba1 {[%clk 0:01:32.5]} 23... d5 {[%clk 0:02:26.6]} 24.
cxd5 {[%clk 0:01:30.1]} 24... exd5 {[%clk 0:02:26.8]} 25. Ndf5 {[%clk
0:01:24.9]} 25... Qa7 {[%clk 0:02:03.1]} 26. Nxe7+ {[%clk 0:01:20.7]} 26... Qxe7
{[%clk 0:02:01.6]} 27. Nf5 {[%clk 0:01:21.3]} 27... Qc7 {[%clk 0:01:55.2]} 28.
Rc1 {[%clk 0:00:29.9]} 28... d4 {[%clk 0:01:41.9]} 29. b4 {[%clk 0:00:23.2]}
29... Ncxe4 {[%clk 0:01:11.9]} 30. Rxc7 {[%clk 0:00:22.9]} 30... Nxf2 {[%clk
0:01:12.4]} 31. Kxf2 {[%clk 0:00:23.4]} 31... g6 {[%clk 0:01:09]} 32. Nxd4
{[%clk 0:00:16.6]} 32... Nd5 {[%clk 0:01:09.2]} 33. Rc1 {[%clk 0:00:13.8]} 33...
Nxb4 {[%clk 0:01:09.5]} 34. Rcd1 {[%clk 0:00:14]} 34... Rc8 {[%clk 0:01:08.9]}
35. Bb2 {[%clk 0:00:11.3]} 35... Nd5 {[%clk 0:01:05.7]} 36. Ne2 {[%clk 0:00:11]}
36... Ne3 {[%clk 0:01:04.9]} 37. Re1 {[%clk 0:00:10.4]} 37... Nc4 {[%clk
0:01:04.7]} 38. Rc2 {[%clk 0:00:10.3]} 38... Rcd8 {[%clk 0:00:59.4]} 39. Bc1
{[%clk 0:00:10.4]} 39... Ne5 {[%clk 0:00:56.8]} 40. Rc3 {[%clk 0:00:09.7]} 40...
b4 {[%clk 0:00:53.8]} 41. Re3 {[%clk 0:00:06.9]} 41... Nd3+ {[%clk 0:00:52.7]}
42. Rxd3 {[%clk 0:00:05.2]} 42... Rc8 {[%clk 0:00:52.4]} 43. Bd2 {[%clk
0:00:05]} 43... a5 {[%clk 0:00:52.7]} 44. Nd4 {[%clk 0:00:05.1]} 44... Red8
{[%clk 0:00:50.8]} 45. Nb3 {[%clk 0:00:04.8]} 45... Rxd3 {[%clk 0:00:44.9]} 46.
Bxd3 {[%clk 0:00:05.7]} 46... a4 {[%clk 0:00:45.7]} 47. Nc1 {[%clk 0:00:05.6]}
47... b3 {[%clk 0:00:41.5]} 48. axb3 {[%clk 0:00:05.8]} 48... axb3 {[%clk
0:00:42.4]} 49. Nxb3 {[%clk 0:00:06.4]} 49... Bd5 {[%clk 0:00:43.1]} 50. Nc1
{[%clk 0:00:06.8]} 50... Ra8 {[%clk 0:00:42.4]} 51. Be4 {[%clk 0:00:06.8]} 51...
Rd8 {[%clk 0:00:41]} 52. Bxd5 {[%clk 0:00:06.6]} 52... Rxd5 {[%clk 0:00:41.9]}
53. Be3 {[%clk 0:00:07.4]} 53... f6 {[%clk 0:00:42.3]} 54. Ne2 {[%clk
0:00:08.3]} 54... Kf7 {[%clk 0:00:42.3]} 55. Nc3 {[%clk 0:00:08.9]} 55... Rd3
{[%clk 0:00:42.2]} 56. Ne4 {[%clk 0:00:09.5]} 56... f5 {[%clk 0:00:42.6]} 57.
Ng5+ {[%clk 0:00:09.6]} 57... Kf6 {[%clk 0:00:43]} 58. f4 {[%clk 0:00:10.5]}
58... h6 {[%clk 0:00:43.1]} 59. Nf3 {[%clk 0:00:11.4]} 59... g5 {[%clk
0:00:43.2]} 60. fxg5+ {[%clk 0:00:11.6]} 60... hxg5 {[%clk 0:00:44.1]} 61. Bxg5+
{[%clk 0:00:12.5]} 61... Kg6 {[%clk 0:00:44.4]} 62. Bf4 {[%clk 0:00:13.2]} 62...
Ra3 {[%clk 0:00:44]} 63. Re2 {[%clk 0:00:13.4]} 63... Kf6 {[%clk 0:00:44.5]} 64.
g3 {[%clk 0:00:14.1]} 1-0

[Event "Late-Titled-Tuesday-Blitz-February-27-2024"]
[Site "Chess.com"]
[Date "2024.02.27"]
[Round "10"]
[White "SocoLoco"]
[Black "Mikhail646464"]
[Result "1-0"]
[WhiteElo "2227"]
[BlackElo "2340"]
[TimeControl "180+1"]
[EndTime "15:56:17 PST"]
[Termination "SocoLoco won on time"]

1. e4 {[%clk 0:03:00.9]} 1... c6 {[%clk 0:02:58.2]} 2. b3 {[%clk 0:02:58.9]}
2... e5 {[%clk 0:02:51.2]} 3. Bb2 {[%clk 0:02:58]} 3... d6 {[%clk 0:02:51]} 4.
Nf3 {[%clk 0:02:48.7]} 4... Nd7 {[%clk 0:02:49.4]} 5. d4 {[%clk 0:02:47.7]} 5...
Qc7 {[%clk 0:02:29.6]} 6. Bd3 {[%clk 0:02:46]} 6... Ngf6 {[%clk 0:02:26.8]} 7.
O-O {[%clk 0:02:44.6]} 7... Be7 {[%clk 0:02:26.9]} 8. Re1 {[%clk 0:02:43.5]}
8... O-O {[%clk 0:02:26.7]} 9. Nbd2 {[%clk 0:02:42.3]} 9... Re8 {[%clk
0:02:22.5]} 10. c3 {[%clk 0:02:40.2]} 10... Bf8 {[%clk 0:02:15.1]} 11. Rc1
{[%clk 0:02:37.9]} 11... a5 {[%clk 0:02:01.7]} 12. a3 {[%clk 0:02:31.2]} 12...
a4 {[%clk 0:01:55.9]} 13. b4 {[%clk 0:02:30.1]} 13... b5 {[%clk 0:01:54.3]} 14.
Nf1 {[%clk 0:02:24.7]} 14... Bb7 {[%clk 0:01:44.8]} 15. Qc2 {[%clk 0:02:08.3]}
15... Nb6 {[%clk 0:01:41.5]} 16. Ne3 {[%clk 0:02:05.4]} 16... g6 {[%clk
0:01:31.4]} 17. c4 {[%clk 0:01:55]} 17... bxc4 {[%clk 0:01:22.7]} 18. Nxc4
{[%clk 0:01:55.1]} 18... Nxc4 {[%clk 0:01:22.7]} 19. Bxc4 {[%clk 0:01:48.8]}
19... Bg7 {[%clk 0:01:13.4]} 20. dxe5 {[%clk 0:01:25.1]} 20... dxe5 {[%clk
0:01:12.3]} 21. Ng5 {[%clk 0:01:14.8]} 21... Re7 {[%clk 0:01:11.5]} 22. Qc3
{[%clk 0:00:59.8]} 22... Nd7 {[%clk 0:01:03.8]} 23. Rc2 {[%clk 0:00:36]} 23...
Rf8 {[%clk 0:00:52.1]} 24. h4 {[%clk 0:00:33.3]} 24... h6 {[%clk 0:00:51.8]} 25.
Nf3 {[%clk 0:00:33.1]} 25... Kh7 {[%clk 0:00:48.6]} 26. Rec1 {[%clk 0:00:32.2]}
26... Nf6 {[%clk 0:00:43.4]} 27. Bd3 {[%clk 0:00:32]} 27... Qb8 {[%clk
0:00:34.7]} 28. Rd2 {[%clk 0:00:29.3]} 28... Nh5 {[%clk 0:00:33.8]} 29. g3
{[%clk 0:00:27.8]} 29... Qc8 {[%clk 0:00:32.9]} 30. Rcd1 {[%clk 0:00:27.4]}
30... Qg4 {[%clk 0:00:28.6]} 31. Be2 {[%clk 0:00:27.3]} 31... Nf4 {[%clk
0:00:27.7]} 32. Bf1 {[%clk 0:00:24.9]} 32... c5 {[%clk 0:00:19.8]} 33. Qe3
{[%clk 0:00:24.5]} 33... f5 {[%clk 0:00:14.5]} 34. Rd7 {[%clk 0:00:16.5]} 34...
Rxd7 {[%clk 0:00:10.1]} 35. Rxd7 {[%clk 0:00:16.1]} 35... fxe4 {[%clk
0:00:10.5]} 36. Rxb7 {[%clk 0:00:15.2]} 36... exf3 {[%clk 0:00:09.3]} 37. Bxe5
{[%clk 0:00:14.2]} 37... Rg8 {[%clk 0:00:05.4]} 38. Qxf4 {[%clk 0:00:08.5]}
38... Qxf4 {[%clk 0:00:04.1]} 39. gxf4 {[%clk 0:00:06.5]} 39... cxb4 {[%clk
0:00:04.3]} 40. Rxb4 {[%clk 0:00:04]} 40... Kh8 {[%clk 0:00:02.1]} 41. Bxg7+
{[%clk 0:00:02.6]} 41... Rxg7 {[%clk 0:00:01.5]} 42. Rxa4 {[%clk 0:00:03.4]}
42... Rc7 {[%clk 0:00:01.2]} 43. Rd4 {[%clk 0:00:03.4]} 1-0

[Event "Late-Titled-Tuesday-Blitz-February-27-2024"]
[Site "Chess.com"]
[Date "2024.02.27"]
[Round "10"]
[White "IMRosen"]
[Black "Nf3c5"]
[Result "1-0"]
[WhiteElo "2690"]
[BlackElo "2553"]
[TimeControl "180+1"]
[EndTime "15:56:19 PST"]
[Termination "IMRosen won on time"]

1. e4 {[%clk 0:03:00.9]} 1... e5 {[%clk 0:02:57.1]} 2. Nf3 {[%clk 0:03:00.7]}
2... Nc6 {[%clk 0:02:54.5]} 3. Bc4 {[%clk 0:03:01.3]} 3... Nf6 {[%clk
0:02:53.7]} 4. d3 {[%clk 0:02:57.4]} 4... Bc5 {[%clk 0:02:53.9]} 5. a4 {[%clk
0:02:56.9]} 5... a6 {[%clk 0:02:53.1]} 6. Nc3 {[%clk 0:02:50.3]} 6... h6 {[%clk
0:02:43.2]} 7. h3 {[%clk 0:02:47.1]} 7... d6 {[%clk 0:02:42.6]} 8. a5 {[%clk
0:02:40.9]} 8... Bb4 {[%clk 0:02:30.3]} 9. Bd5 {[%clk 0:02:26.8]} 9... Nxd5
{[%clk 0:02:12.6]} 10. exd5 {[%clk 0:02:26.7]} 10... Ne7 {[%clk 0:02:13.5]} 11.
O-O {[%clk 0:02:07.5]} 11... Bxc3 {[%clk 0:01:50.5]} 12. bxc3 {[%clk 0:02:07.7]}
12... Nxd5 {[%clk 0:01:51]} 13. d4 {[%clk 0:02:08]} 13... e4 {[%clk 0:01:46]}
14. c4 {[%clk 0:01:53.2]} 14... Nf6 {[%clk 0:01:42.7]} 15. Re1 {[%clk
0:01:46.4]} 15... O-O {[%clk 0:01:41.7]} 16. Nh2 {[%clk 0:01:43.3]} 16... Bf5
{[%clk 0:01:22.1]} 17. Nf1 {[%clk 0:01:43.5]} 17... Re8 {[%clk 0:01:21.5]} 18.
Rb1 {[%clk 0:01:42.7]} 18... Rb8 {[%clk 0:01:20.6]} 19. Ng3 {[%clk 0:01:43.3]}
19... Bg6 {[%clk 0:01:20.3]} 20. d5 {[%clk 0:01:40.7]} 20... c5 {[%clk 0:01:17]}
21. Rb6 {[%clk 0:01:35.6]} 21... Qc7 {[%clk 0:01:12.2]} 22. Bf4 {[%clk
0:01:35.2]} 22... Rbd8 {[%clk 0:01:00.7]} 23. Qb1 {[%clk 0:01:27.1]} 23... Re7
{[%clk 0:00:59.3]} 24. Qb2 {[%clk 0:01:20.5]} 24... Nh5 {[%clk 0:00:43.5]} 25.
Nxh5 {[%clk 0:01:11.1]} 25... Bxh5 {[%clk 0:00:44.4]} 26. Rb1 {[%clk 0:01:11.2]}
26... Rdd7 {[%clk 0:00:44.9]} 27. Qb3 {[%clk 0:00:54]} 27... Bg6 {[%clk
0:00:32.7]} 28. Qg3 {[%clk 0:00:49.7]} 28... Qd8 {[%clk 0:00:31.1]} 29. Bxd6
{[%clk 0:00:45.1]} 29... Re8 {[%clk 0:00:27.7]} 30. Bxc5 {[%clk 0:00:37.6]}
30... e3 {[%clk 0:00:27]} 31. Bxe3 {[%clk 0:00:35.9]} 31... Bxc2 {[%clk
0:00:27.3]} 32. Bxh6 {[%clk 0:00:17.6]} 32... Bg6 {[%clk 0:00:26.5]} 33. Bg5
{[%clk 0:00:18.2]} 33... Qc8 {[%clk 0:00:18]} 34. Rc1 {[%clk 0:00:18.3]} 34...
Re4 {[%clk 0:00:15.4]} 35. c5 {[%clk 0:00:15.2]} 35... Rxd5 {[%clk 0:00:15.2]}
36. c6 {[%clk 0:00:14.6]} 36... bxc6 {[%clk 0:00:12.2]} 37. Rb8 {[%clk
0:00:13.8]} 37... Re8 {[%clk 0:00:09.3]} 38. Rxc8 {[%clk 0:00:13.7]} 38... Rxc8
{[%clk 0:00:10.2]} 39. Be3 {[%clk 0:00:05.7]} 39... c5 {[%clk 0:00:08.7]} 40. h4
{[%clk 0:00:05.6]} 40... c4 {[%clk 0:00:08.3]} 41. Qg4 {[%clk 0:00:05.8]} 41...
Bf5 {[%clk 0:00:05.1]} 42. Qf3 {[%clk 0:00:06.2]} 42... Be6 {[%clk 0:00:04.2]}
43. h5 {[%clk 0:00:05.6]} 43... c3 {[%clk 0:00:03.7]} 44. h6 {[%clk 0:00:05.9]}
44... gxh6 {[%clk 0:00:03]} 45. Bxh6 {[%clk 0:00:05.6]} 45... Rc4 {[%clk
0:00:02.8]} 46. Qf6 {[%clk 0:00:05.4]} 46... Rg4 {[%clk 0:00:02.2]} 47. Rxc3
{[%clk 0:00:05.3]} 1-0

[Event "Late-Titled-Tuesday-Blitz-February-27-2024"]
[Site "Chess.com"]
[Date "2024.02.27"]
[Round "10"]
[White "Mikhail_Golubev"]
[Black "Binary010"]
[Result "1-0"]
[WhiteElo "2648"]
[BlackElo "2795"]
[TimeControl "180+1"]
[EndTime "15:56:21 PST"]
[Termination "Mikhail_Golubev won by resignation"]

1. e4 {[%clk 0:03:00.9]} 1... e5 {[%clk 0:02:59.4]} 2. Nf3 {[%clk 0:03:00.8]}
2... Nc6 {[%clk 0:02:59.9]} 3. Bc4 {[%clk 0:03:01.2]} 3... Nf6 {[%clk
0:02:59.6]} 4. Ng5 {[%clk 0:03:01]} 4... d5 {[%clk 0:02:58.1]} 5. exd5 {[%clk
0:03:01.2]} 5... Na5 {[%clk 0:02:51.2]} 6. Bb5+ {[%clk 0:03:01.1]} 6... c6
{[%clk 0:02:51.6]} 7. dxc6 {[%clk 0:03:01.7]} 7... bxc6 {[%clk 0:02:52.4]} 8.
Bd3 {[%clk 0:03:01.7]} 8... Nd5 {[%clk 0:02:50.7]} 9. Nf3 {[%clk 0:03:01.2]}
9... Bd6 {[%clk 0:02:48.2]} 10. O-O {[%clk 0:03:00.3]} 10... O-O {[%clk
0:02:48.3]} 11. Re1 {[%clk 0:03:00.3]} 11... f5 {[%clk 0:02:43.3]} 12. Nxe5
{[%clk 0:02:56.2]} 12... Qf6 {[%clk 0:02:41.2]} 13. Nf3 {[%clk 0:02:54.6]} 13...
g5 {[%clk 0:02:40.7]} 14. c4 {[%clk 0:02:54.5]} 14... Nf4 {[%clk 0:02:40.8]} 15.
Bf1 {[%clk 0:02:54.4]} 15... g4 {[%clk 0:02:39.5]} 16. d4 {[%clk 0:02:54]} 16...
gxf3 {[%clk 0:02:30.6]} 17. Qxf3 {[%clk 0:02:54.9]} 17... Ne6 {[%clk 0:02:22.8]}
18. Qc3 {[%clk 0:02:55.4]} 18... Qh4 {[%clk 0:02:21.6]} 19. h3 {[%clk
0:02:48.9]} 19... c5 {[%clk 0:02:14.5]} 20. dxc5 {[%clk 0:02:07.6]} 20... Bxc5
{[%clk 0:01:57.5]} 21. Be3 {[%clk 0:02:07.6]} 21... Nc6 {[%clk 0:01:37.5]} 22.
Bxc5 {[%clk 0:01:46.8]} 22... Nxc5 {[%clk 0:01:38.4]} 23. Nd2 {[%clk 0:01:46.7]}
23... Ne4 {[%clk 0:01:27.6]} 24. Nxe4 {[%clk 0:01:38.8]} 24... fxe4 {[%clk
0:01:28.5]} 25. g3 {[%clk 0:01:36.1]} 25... Qe7 {[%clk 0:01:26.3]} 26. Bg2
{[%clk 0:01:31.2]} 26... Bf5 {[%clk 0:01:24.5]} 27. Rad1 {[%clk 0:01:25.2]}
27... Rad8 {[%clk 0:01:15.4]} 28. Rd5 {[%clk 0:01:20.5]} 28... Bg6 {[%clk
0:01:08.9]} 29. Qe3 {[%clk 0:01:06.4]} 29... Qf6 {[%clk 0:00:43.4]} 30. Rxd8
{[%clk 0:00:59.8]} 30... Nxd8 {[%clk 0:00:43.7]} 31. Qxa7 {[%clk 0:00:56.4]}
31... Qxb2 {[%clk 0:00:42.8]} 32. a4 {[%clk 0:00:39.3]} 32... Nc6 {[%clk
0:00:35.6]} 33. Qc5 {[%clk 0:00:33.9]} 33... Ne5 {[%clk 0:00:29.9]} 34. Qd5+
{[%clk 0:00:25.4]} 34... Kh8 {[%clk 0:00:29.9]} 35. Rf1 {[%clk 0:00:21.4]} 35...
Nd3 {[%clk 0:00:05.5]} 36. Bxe4 {[%clk 0:00:18.4]} 36... Nxf2 {[%clk 0:00:05.5]}
37. Bg2 {[%clk 0:00:10.8]} 37... Qe2 {[%clk 0:00:03.6]} 38. Qd4+ {[%clk
0:00:10.2]} 38... Kg8 {[%clk 0:00:04]} 39. Rxf2 {[%clk 0:00:10.5]} 39... Qe1+
{[%clk 0:00:04.7]} 40. Bf1 {[%clk 0:00:09.2]} 40... Rxf2 {[%clk 0:00:01.7]} 41.
Qxf2 {[%clk 0:00:08.8]} 41... Qc3 {[%clk 0:00:02.4]} 42. c5 {[%clk 0:00:07]}
42... Kg7 {[%clk 0:00:01.9]} 43. a5 {[%clk 0:00:05.8]} 43... Be4 {[%clk
0:00:02.2]} 44. h4 {[%clk 0:00:05.1]} 44... h5 {[%clk 0:00:01.9]} 45. Qf4 {[%clk
0:00:03.6]} 45... Qxc5+ {[%clk 0:00:01.9]} 46. Qf2 {[%clk 0:00:03.2]} 46... Bg6
{[%clk 0:00:02.8]} 47. Qxc5 {[%clk 0:00:03.1]} 1-0